fUST/lending_fUST_20250625
["ID","MTS","AMOUNT","RATE_DAILY","PERIOD"]
[367568420,1750861843024,-151.0,0.00016657,2]
[367568423,1750861843033,-151.0,0.00016657,2]
[367568425,1750861843042,-151.0,0.00016657,2]
[367568428,1750861843051,-782.01838597,0.00016668,2]
[367568431,1750861843061,-200.8096727,0.000167,2]
[367568434,1750861843070,-574.9477627,0.000167,2]
[367568437,1750861843078,-159.1939926,0.000167,2]
[367568440,1750861843088,-354.528593,0.000167,2]
[367568442,1750861843096,-574.9477627,0.000167,2]
[367568444,1750861843106,-322.026467,0.000167,2]
[367568446,1750861843115,-159.1939926,0.000167,2]
[367568448,1750861843124,-574.9477627,0.000167,2]
[367568450,1750861843133,-1877.678872,0.00016712,2]
[367568452,1750861843142,-483.1,0.00016723,2]
[367568454,1750861843151,-460.0,0.00016723,2]
[367568456,1750861843161,-1615.17,0.00016723,2]
[367568458,1750861843170,-460.0,0.00016723,2]
[367568460,1750861843179,-460.0,0.00016723,2]
[367568462,1750861843189,-460.0,0.00016723,2]
[367568464,1750861843198,-460.0,0.00016723,2]
[367568466,1750861843207,-460.0,0.00016723,2]
[367568468,1750861843216,-464.3875564,0.00016723,2]
[367568470,1750861843225,-361.05313495,0.00016726,2]
[367568472,1750861843236,-320.0125821,0.000168,2]
[367568474,1750861843245,-240.6298881,0.000168,2]
[367568476,1750861843254,-177.4156324,0.000168,2]
[367568478,1750861843264,-732.0170874,0.000168,2]
[367568480,1750861843273,-574.9477627,0.000168,2]
[367568482,1750861843282,-159.1939926,0.000168,2]
[367568484,1750861843291,-159.1939926,0.000168,2]
[367568486,1750861843301,-177.4156324,0.000168,2]
[367568488,1750861843310,-574.9477627,0.000168,2]
[367568490,1750861843320,-177.4156324,0.000168,2]
[367568492,1750861843330,-574.9477627,0.000168,2]
[367568494,1750861843338,-159.1939926,0.000168,2]
[367568496,1750861843347,-177.4156324,0.000168,2]
[367568498,1750861843356,-159.1939926,0.000168,2]
[367568500,1750861843366,-177.4156324,0.000168,2]
[367568502,1750861843375,-574.9477627,0.000168,2]
[367568504,1750861843384,-395.0,0.00016803,5]
[367568506,1750861843393,-460.0,0.00016824,2]
[367568508,1750861843403,-460.0,0.00016824,2]
[367568510,1750861843412,-460.0,0.00016824,2]
[367568512,1750861843421,-347.85384599,0.00016824,2]
[367568514,1750861843431,-402.18365226,0.00016824,2]
[367568516,1750861843440,-460.0,0.00016824,2]
[367568518,1750861843449,-460.0,0.00016824,2]
[367568521,1750861843459,-460.0,0.00016824,2]
[367568524,1750861843468,-460.0,0.00016824,2]
[367568527,1750861843477,-2966.93,0.00016824,2]
[367568530,1750861843487,-460.0,0.00016824,2]
[367568533,1750861843495,-460.0,0.00016824,2]
[367568535,1750861843505,-354.56730608,0.00016824,2]
[367568537,1750861843514,-2654.77,0.00016824,2]
[367568539,1750861843524,-460.0,0.00016824,2]
[367568541,1750861843533,-460.0,0.00016824,2]
[367568543,1750861843542,-460.0,0.00016824,2]
[367568545,1750861843552,-460.0,0.00016824,2]
[367568547,1750861843561,-1973.41,0.00016824,2]
[367568549,1750861843571,-597.1,0.00016824,2]
[367568552,1750861843580,-448.72074881,0.00016824,2]
[367568555,1750861843589,-1548.17,0.00016824,2]
[367568558,1750861843598,-2257.2,0.00016824,2]
[367568560,1750861843608,-460.0,0.00016824,2]
[367568562,1750861843617,-936.71,0.00016824,2]
[367568564,1750861843627,-453.80674209,0.00016824,2]
[367568566,1750861843636,-460.0,0.00016824,2]
[367568568,1750861843645,-460.13,0.00016824,2]
[367568570,1750861843655,-1549.18,0.00016824,2]
[367568572,1750861843664,-460.0,0.00016824,2]
[367568574,1750861843674,-448.53803263,0.00016824,2]
[367568576,1750861843683,-460.0,0.00016824,2]
[367568578,1750861843693,-460.0,0.00016824,2]
[367568580,1750861843703,-460.0,0.00016824,2]
[367568582,1750861843712,-469.55,0.00016824,2]
[367568584,1750861843722,-500.0,0.00016825,2]
[367568586,1750861843731,-460.0,0.00016825,2]
[367568588,1750861843741,-460.0,0.00016825,2]
[367568591,1750861843751,-460.0,0.00016825,2]
[367568592,1750861843760,-460.0,0.00016825,2]
[367568594,1750861843770,-262.74,0.00016825,2]
[367568597,1750861843780,-460.0,0.00016825,2]
[367568599,1750861843790,-460.0,0.00016825,2]
[367568601,1750861843801,-460.0,0.00016825,2]
[367568603,1750861843811,-460.0,0.00016825,2]
[367568604,1750861843820,-570.82020435,0.00016825,2]
[367568607,1750861843831,-460.0,0.00016825,2]
[367568609,1750861843841,-699.62,0.00016825,2]
[367568611,1750861843852,-460.0,0.00016825,2]
[367568613,1750861843861,-460.0,0.00016825,2]
[367568615,1750861843872,-407.53,0.00016825,2]
[367568617,1750861843883,-460.0,0.00016825,2]
[367568619,1750861843892,-460.0,0.00016825,2]
[367568621,1750861843902,-269.22022097,0.00016825,2]
[367568623,1750861843911,-460.0,0.00016825,2]
[367568624,1750861843920,-460.0,0.00016825,2]
[367568627,1750861843931,-159.4,0.00016825,2]
[367568629,1750861843941,-460.0,0.00016825,2]
[367568631,1750861843954,-460.0,0.00016825,2]
[367568633,1750861843963,-460.0,0.00016825,2]
[367568635,1750861843974,-460.0,0.00016825,2]
[367568637,1750861843984,-460.0,0.00016825,2]
[367568639,1750861843994,-1021.65,0.00016825,2]
[367568641,1750861844003,-460.0,0.00016825,2]
[367568643,1750861844012,-570.43,0.00016825,2]
[367568645,1750861844021,-460.0,0.00016825,2]
[367568647,1750861844030,-460.0,0.00016825,2]
[367568649,1750861844040,-1930.32,0.00016825,2]
[367568651,1750861844049,-460.0,0.00016825,2]
[367568653,1750861844058,-460.0,0.00016825,2]
[367568655,1750861844067,-460.0,0.00016825,2]
[367568657,1750861844077,-460.0,0.00016825,2]
[367568659,1750861844086,-905.52,0.00016825,2]
[367568661,1750861844095,-638.78,0.00016825,2]
[367568663,1750861844104,-460.0,0.00016825,2]
[367568665,1750861844114,-460.0,0.00016825,2]
[367568667,1750861844123,-460.0,0.00016825,2]
[367568669,1750861844132,-460.0,0.00016825,2]
[367568671,1750861844141,-460.0,0.00016825,2]
[367568673,1750861844150,-460.0,0.00016825,2]
[367568675,1750861844160,-460.0,0.00016825,2]
[367568677,1750861844169,-460.0,0.00016825,2]
[367568679,1750861844178,-460.0,0.00016825,2]
[367568681,1750861844188,-460.0,0.00016825,2]
[367568683,1750861844198,-460.0,0.00016825,2]
[367568685,1750861844207,-992.29,0.00016825,2]
[367568687,1750861844216,-460.0,0.00016826,2]
[367568689,1750861844225,-460.0,0.00016826,2]
[367568691,1750861844234,-460.0,0.00016826,2]
[367568693,1750861844244,-460.0,0.00016826,2]
[367568695,1750861844253,-230.38214132,0.00016826,2]
[367568697,1750861844262,-460.0,0.00016826,2]
[367568699,1750861844272,-460.0,0.00016826,2]
[367568701,1750861844281,-460.0,0.00016826,2]
[367568703,1750861844290,-460.0,0.00016826,2]
[367568705,1750861844300,-460.0,0.00016826,2]
[367568707,1750861844309,-460.0,0.00016826,2]
[367568709,1750861844318,-460.0,0.00016826,2]
[367568711,1750861844328,-460.0,0.00016826,2]
[367568713,1750861844337,-460.0,0.00016826,2]
[367568715,1750861844346,-460.0,0.00016826,2]
[367568717,1750861844356,-460.0,0.00016826,2]
[367568719,1750861844365,-460.0,0.00016826,2]
[367568721,1750861844375,-460.0,0.00016826,2]
[367568723,1750861844385,-606.53521194,0.00016826,2]
[367568725,1750861844394,-436.87995084,0.00016826,2]
[367568727,1750861844404,-460.0,0.00016826,2]
[367568729,1750861844414,-464.53432958,0.00016826,2]
[367568732,1750861844423,-460.0,0.00016826,2]
[367568734,1750861844433,-460.0,0.00016826,2]
[367568736,1750861844442,-460.0,0.00016826,2]
[367568737,1750861844451,-460.0,0.00016826,2]
[367568739,1750861844461,-489.79945161,0.00016826,2]
[367568741,1750861844470,-460.0,0.00016826,2]
[367568743,1750861844479,-460.0,0.00016826,2]
[367568745,1750861844489,-460.0,0.00016826,2]
[367568747,1750861844498,-460.0,0.00016826,2]
[367568749,1750861844508,-460.0,0.00016826,2]
[367568752,1750861844517,-151.294841,0.00016826,2]
[367568754,1750861844526,-151.0,0.00016826,2]
[367568756,1750861844536,-151.0,0.00016826,2]
[367568758,1750861844545,-460.0,0.00016826,2]
[367568759,1750861844556,-578.66057676,0.00016826,2]
[367568760,1750861844566,-460.0,0.00016826,2]
[367568761,1750861844575,-460.0,0.00016826,2]
[367568762,1750861844584,-460.0,0.00016826,2]
[367568763,1750861844594,-460.0,0.00016826,2]
[367568764,1750861844603,-460.0,0.00016826,2]
[367568765,1750861844612,-460.0,0.00016826,2]
[367568766,1750861844621,-707.06,0.00016826,2]
[367568767,1750861844631,-460.0,0.00016826,2]
[367568768,1750861844641,-460.0,0.00016826,2]
[367568769,1750861844650,-460.0,0.00016826,2]
[367568770,1750861844659,-460.0,0.00016826,2]
[367568771,1750861844669,-460.0,0.00016826,2]
[367568772,1750861844678,-5919.03,0.00016826,2]
[367568773,1750861844687,-460.0,0.00016826,2]
[367568774,1750861844697,-646.55,0.00016826,2]
[367568775,1750861844706,-463.47683701,0.00016826,2]
[367568777,1750861844715,-545.61788883,0.00016826,2]
[367568779,1750861844724,-790.7,0.00016826,2]
[367568781,1750861844735,-460.0,0.00016826,2]
[367568783,1750861844745,-575.56,0.00016826,2]
[367568785,1750861844754,-460.0,0.00016826,2]
[367568787,1750861844764,-535.03417453,0.00016826,2]
[367568789,1750861844773,-460.0,0.00016826,2]
[367568791,1750861844783,-862.99,0.00016826,2]
[367568793,1750861844792,-2431.62,0.00016826,2]
[367568795,1750861844807,-460.0,0.00016826,2]
[367568797,1750861844821,-460.0,0.00016826,2]
[367568799,1750861844831,-460.0,0.00016826,2]
[367568801,1750861844840,-898.85,0.00016826,2]
[367568803,1750861844850,-342.34460055,0.00016826,2]
[367568805,1750861844859,-463.29258906,0.00016826,2]
[367568807,1750861844869,-460.0,0.00016827,2]
[367568809,1750861844880,-460.0,0.00016827,2]
[367568811,1750861844889,-373.56540376,0.00016827,2]
[367568813,1750861844898,-460.0,0.00016827,2]
[367568815,1750861844908,-460.0,0.00016827,2]
[367568817,1750861844917,-775.84,0.00016827,2]
[367568819,1750861844927,-487.31,0.00016827,2]
[367568821,1750861844936,-460.0,0.00016827,2]
[367568823,1750861844946,-151.0,0.00016827,2]
[367568825,1750861844955,-460.0,0.00016827,2]
[367568827,1750861844965,-151.0,0.00016827,2]
[367568829,1750861844974,-460.0,0.00016827,2]
[367568831,1750861844985,-460.0,0.00016827,2]
[367568833,1750861844995,-497.45,0.00016827,2]
[367568835,1750861845004,-460.0,0.00016827,2]
[367568837,1750861845014,-1224.78,0.00016827,2]
[367568839,1750861845023,-151.0,0.00016827,2]
[367568841,1750861845033,-151.0,0.00016827,2]
[367568843,1750861845043,-460.0,0.00016827,2]
[367568845,1750861845052,-844.57,0.00016827,2]
[367568848,1750861845062,-460.0,0.00016827,2]
[367568850,1750861845071,-460.0,0.00016827,2]
[367568852,1750861845081,-151.0,0.00016827,2]
[367568854,1750861845090,-151.0,0.00016827,2]
[367568856,1750861845100,-460.0,0.00016827,2]
[367568858,1750861845109,-460.0,0.00016827,2]
[367568859,1750861845118,-242.645154,0.00016827,2]
[367568861,1750861845127,-242.645154,0.00016827,2]
[367568863,1750861845143,-531.66,0.00016827,2]
[367568865,1750861845152,-460.0,0.00016827,2]
[367568868,1750861845163,-151.0,0.00016827,2]
[367568870,1750861845172,-460.0,0.00016827,2]
[367568871,1750861845181,-2452.55,0.00016827,2]
[367568873,1750861845191,-460.0,0.00016827,2]
[367568875,1750861845200,-460.0,0.00016827,2]
[367568878,1750861845211,-460.0,0.00016827,2]
[367568880,1750861845222,-1591.01,0.00016827,2]
[367568882,1750861845233,-460.0,0.00016827,2]
[367568883,1750861845242,-460.0,0.00016827,2]
[367568885,1750861845252,-460.0,0.00016827,2]
[367568888,1750861845261,-460.0,0.00016827,2]
[367568889,1750861845270,-460.0,0.00016827,2]
[367568892,1750861845280,-1989.73,0.00016827,2]
[367568894,1750861845289,-151.0,0.00016827,2]
[367568896,1750861845298,-151.0,0.00016827,2]
[367568897,1750861845307,-151.0,0.00016827,2]
[367568899,1750861845317,-460.0,0.00016827,2]
[367568914,1750861845442,-151.0,0.00016827,2]
[367568916,1750861845452,-6847.14,0.00016827,2]
[367568918,1750861845462,-1607.44,0.00016827,2]
[367568920,1750861845471,-460.0,0.00016827,2]
[367568922,1750861845480,-1318.414088,0.00016827,2]
[367568924,1750861845490,-1318.414088,0.00016827,2]
[367568927,1750861845500,-151.0,0.00016827,2]
[367568929,1750861845509,-1017.64,0.00016827,2]
[367568930,1750861845518,-1689.44,0.00016827,2]
[367568933,1750861845527,-1208.83,0.00016827,2]
[367568935,1750861845538,-460.0,0.00016827,2]
[367568937,1750861845547,-460.0,0.00016827,2]
[367568939,1750861845556,-460.0,0.00016827,2]
[367568941,1750861845565,-463.1450125,0.00016827,2]
[367568942,1750861845574,-460.0,0.00016827,2]
[367568944,1750861845583,-341.8984415,0.00016829,2]
[367568947,1750861845592,-645.96,0.00016829,2]
[367568948,1750861845602,-436.23728154,0.00016829,2]
[367568950,1750861845611,-460.0,0.00016829,2]
[367568953,1750861845621,-460.0,0.00016829,2]
[367568955,1750861845630,-460.0,0.00016829,2]
[367568957,1750861845639,-460.0,0.00016829,2]
[367568959,1750861845649,-231.83217611,0.00016829,2]
[367568961,1750861845659,-460.0,0.00016829,2]
[367568962,1750861845668,-434.49168496,0.00016829,2]
[367568965,1750861845677,-460.0,0.00016829,2]
[367568966,1750861845686,-460.0,0.00016829,2]
[367568968,1750861845695,-460.0,0.00016829,2]
[367568970,1750861845705,-462.32,0.00016829,2]
[367568973,1750861845714,-460.0,0.00016829,2]
[367568974,1750861845723,-460.0,0.00016829,2]
[367568977,1750861845733,-460.0,0.00016829,2]
[367568978,1750861845742,-151.0,0.00016829,2]
[367568981,1750861845752,-460.0,0.00016829,2]
[367568983,1750861845761,-460.0,0.00016829,2]
[367568985,1750861845770,-460.0,0.00016829,2]
[367568986,1750861845779,-151.0,0.00016829,2]
[367568989,1750861845789,-151.0,0.00016829,2]
[367568991,1750861845798,-535.81381949,0.00016829,2]
[367568993,1750861845810,-460.0,0.00016829,2]
[367568995,1750861845819,-230.17,0.00016829,2]
[367568996,1750861845829,-151.0,0.00016829,2]
[367568998,1750861845838,-151.0,0.00016829,2]
[367569001,1750861845849,-460.0,0.00016829,2]
[367569003,1750861845858,-165.68503,0.00016829,2]
[367569005,1750861845868,-165.68503,0.00016829,2]
[367569007,1750861845879,-460.0,0.00016829,2]
[367569009,1750861845888,-460.0,0.00016829,2]
[367569012,1750861845898,-460.0,0.00016829,2]
[367569014,1750861845908,-157.264208,0.00016829,2]
[367569016,1750861845917,-460.0,0.00016829,2]
[367569019,1750861845927,-175.44,0.00016829,2]
[367569021,1750861845936,-460.0,0.00016829,2]
[367569023,1750861845948,-460.0,0.00016829,2]
[367569024,1750861845957,-460.0,0.00016829,2]
[367569026,1750861845967,-460.0,0.00016829,2]
[367569029,1750861845976,-460.0,0.00016829,2]
[367569031,1750861845986,-460.0,0.00016829,2]
[367569033,1750861845996,-460.0,0.00016829,2]
[367569034,1750861846005,-153.547461,0.00016829,2]
[367569038,1750861846015,-151.0,0.00016829,2]
[367569040,1750861846024,-151.0,0.00016829,2]
[367569042,1750861846034,-151.0,0.00016829,2]
[367569043,1750861846043,-151.0,0.00016831,2]
[367569045,1750861846052,-151.0,0.00016831,2]
[367569047,1750861846062,-151.0,0.00016831,2]
[367569049,1750861846071,-151.0,0.00016831,2]
[367569051,1750861846080,-214.918621,0.00016831,2]
[367569053,1750861846090,-151.0,0.00016831,2]
[367569055,1750861846099,-151.0,0.00016833,2]
[367569058,1750861846109,-151.0,0.00016833,2]
[367569059,1750861846118,-151.0,0.00016833,2]
[367569061,1750861846128,-151.0,0.00016833,2]
[367569063,1750861846138,-152.773489,0.00016833,2]
[367569066,1750861846147,-151.0,0.00016833,2]
[367569067,1750861846158,-151.0,0.00016865,2]
[367569070,1750861846167,-151.0,0.00016865,2]
[367569071,1750861846177,-151.0,0.00016865,2]
[367569074,1750861846186,-151.0,0.00016865,2]
[367569076,1750861846196,-151.0,0.00016865,2]
[367569078,1750861846206,-242.645154,0.00016865,2]
[367569079,1750861846215,-242.645154,0.00016865,2]
[367569082,1750861846224,-239.904769,0.00016866,2]
[367569084,1750861846234,-151.0,0.00016866,2]
[367569085,1750861846243,-1318.414088,0.00016866,2]
[367569087,1750861846253,-1318.414088,0.00016866,2]
[367569090,1750861846263,-151.0,0.00016868,2]
[367569092,1750861846272,-151.0,0.00016868,2]
[367569094,1750861846281,-366.0085437,0.000169,2]
[367569096,1750861846291,-2160.0,0.00016904,2]
[367569097,1750861846300,-2160.0,0.00016908,2]
[367569098,1750861846309,-248.0,0.00016988,2]
[367569099,1750861846319,-1615.17,0.00016997,2]
[367569100,1750861846329,-460.0,0.00016997,2]
[367569101,1750861846338,-460.0,0.00016997,2]
[367569102,1750861846348,-460.0,0.00016997,2]
[367569104,1750861846357,-460.0,0.00016997,2]
[367569106,1750861846367,-361.05313495,0.00016999,2]
[367569107,1750861846377,-248.0,0.00017054,2]
[367569108,1750861846386,-574.9477627,0.00017068,2]
[367569109,1750861846396,-574.9477627,0.00017068,2]
[367569110,1750861846405,-574.9477627,0.00017068,2]
[367569112,1750861846414,-574.9477627,0.00017068,2]
[367569113,1750861846423,-574.9477627,0.00017068,2]
[367569116,1750861846433,-574.9477627,0.00017068,2]
[367569118,1750861846442,-574.9477627,0.00017068,2]
[367569119,1750861846451,-318.3385472,0.00017068,2]
[367569121,1750861846461,-177.3826656,0.00017068,2]
[367569123,1750861846470,-1149.7195556,0.00017068,2]
[367569124,1750861846479,-359.68435359,0.00017093,2]
[367569125,1750861846490,-151.0,0.00017093,2]
[367569126,1750861846499,-460.0,0.00017098,2]
[367569127,1750861846508,-460.0,0.00017098,2]
[367569129,1750861846517,-460.0,0.00017098,2]
[367569131,1750861846526,-460.0,0.00017098,2]
[367569133,1750861846536,-460.0,0.00017098,2]
[367569135,1750861846545,-460.0,0.00017098,2]
[367569137,1750861846554,-2966.93,0.00017098,2]
[367569139,1750861846564,-460.0,0.00017098,2]
[367569141,1750861846573,-2654.77,0.00017098,2]
[367569142,1750861846582,-460.0,0.00017098,2]
[367569143,1750861846592,-508.47986216,0.00017098,2]
[367569144,1750861846601,-460.0,0.00017098,2]
[367569146,1750861846611,-1973.41,0.00017098,2]
[367569148,1750861846620,-597.1,0.00017098,2]
[367569150,1750861846629,-1548.17,0.00017098,2]
[367569152,1750861846638,-2257.2,0.00017098,2]
[367569154,1750861846648,-460.0,0.00017098,2]
[367569155,1750861846657,-936.71,0.00017098,2]
[367569156,1750861846666,-460.0,0.00017098,2]
[367569157,1750861846675,-460.13,0.00017098,2]
[367569158,1750861846684,-1549.18,0.00017098,2]
[367569159,1750861846693,-460.0,0.00017098,2]
[367569160,1750861846702,-460.0,0.00017098,2]
[367569161,1750861846712,-460.0,0.00017098,2]
[367569162,1750861846721,-428.35126705,0.00017098,2]
[367569163,1750861846731,-469.55,0.00017098,2]
[367569164,1750861846740,-500.0,0.00017099,2]
[367569165,1750861846750,-460.0,0.00017099,2]
[367569166,1750861846759,-460.0,0.00017099,2]
[367569167,1750861846769,-460.0,0.00017099,2]
[367569169,1750861846778,-460.0,0.00017099,2]
[367569170,1750861846788,-460.0,0.00017099,2]
[367569171,1750861846797,-460.0,0.00017099,2]
[367569172,1750861846812,-460.0,0.00017099,2]
[367569173,1750861846822,-571.29,0.00017099,2]
[367569174,1750861846831,-460.0,0.00017099,2]
[367569175,1750861846840,-699.62,0.00017099,2]
[367569176,1750861846851,-460.0,0.00017099,2]
[367569177,1750861846860,-460.0,0.00017099,2]
[367569178,1750861846872,-460.0,0.00017099,2]
[367569180,1750861846882,-460.0,0.00017099,2]
[367569182,1750861846891,-460.0,0.00017099,2]
[367569183,1750861846901,-460.0,0.00017099,2]
[367569184,1750861846911,-460.0,0.00017099,2]
[367569185,1750861846920,-460.0,0.00017099,2]
[367569186,1750861846930,-1021.65,0.00017099,2]
[367569187,1750861846939,-460.0,0.00017099,2]
[367569188,1750861846948,-570.43,0.00017099,2]
[367569189,1750861846957,-460.0,0.00017099,2]
[367569190,1750861846968,-1930.32,0.00017099,2]
[367569191,1750861846977,-460.0,0.00017099,2]
[367569192,1750861846987,-404.87125098,0.00017099,2]
[367569193,1750861846997,-460.0,0.00017099,2]
[367569194,1750861847006,-603.54484294,0.00017099,2]
[367569195,1750861847015,-905.52,0.00017099,2]
[367569196,1750861847026,-638.78,0.00017099,2]
[367569197,1750861847036,-460.0,0.00017099,2]
[367569198,1750861847045,-460.0,0.00017099,2]
[367569199,1750861847054,-460.0,0.00017099,2]
[367569200,1750861847063,-460.0,0.00017099,2]
[367569201,1750861847073,-460.0,0.00017099,2]
[367569202,1750861847082,-460.0,0.00017099,2]
[367569203,1750861847092,-460.0,0.00017099,2]
[367569204,1750861847101,-460.0,0.00017099,2]
[367569205,1750861847111,-460.0,0.00017099,2]
[367569206,1750861847120,-554.60617992,0.00017099,2]
[367569207,1750861847129,-992.29,0.00017099,2]
[367569208,1750861847143,-151.0,0.000171,2]
[367569209,1750861847153,-460.0,0.000171,2]
[367569210,1750861847162,-460.0,0.000171,2]
[367569211,1750861847171,-460.0,0.000171,2]
[367569212,1750861847181,-460.0,0.000171,2]
[367569213,1750861847190,-460.0,0.000171,2]
[367569214,1750861847199,-460.0,0.000171,2]
[367569215,1750861847208,-460.0,0.000171,2]
[367569216,1750861847217,-460.0,0.000171,2]
[367569217,1750861847226,-460.0,0.000171,2]
[367569218,1750861847237,-460.0,0.000171,2]
[367569219,1750861847246,-460.0,0.000171,2]
[367569220,1750861847255,-460.0,0.000171,2]
[367569221,1750861847264,-460.0,0.000171,2]
[367569222,1750861847273,-165.68503,0.000171,2]
[367569223,1750861847282,-165.68503,0.000171,2]
[367569224,1750861847291,-257.12082694,0.000171,2]
[367569225,1750861847299,-460.0,0.000171,2]
[367569226,1750861847308,-460.0,0.000171,2]
[367569227,1750861847316,-460.0,0.000171,2]
[367569228,1750861847325,-460.0,0.000171,2]
[367569229,1750861847334,-585.45482685,0.000171,2]
[367569230,1750861847343,-707.06,0.000171,2]
[367569231,1750861847351,-460.0,0.000171,2]
[367569232,1750861847360,-460.0,0.000171,2]
[367569233,1750861847369,-460.0,0.000171,2]
[367569234,1750861847378,-245.25359292,0.000171,2]
[367569235,1750861847387,-5919.03,0.000171,2]
[367569236,1750861847396,-151.0,0.000171,2]
[367569237,1750861847407,-460.0,0.000171,2]
[367569238,1750861847416,-646.55,0.000171,2]
[367569239,1750861847429,-790.7,0.000171,2]
[367569240,1750861847438,-575.56,0.000171,2]
[367569241,1750861847447,-460.0,0.000171,2]
[367569242,1750861847456,-460.0,0.000171,2]
[367569243,1750861847465,-862.99,0.000171,2]
[367569244,1750861847474,-151.0,0.000171,2]
[367569245,1750861847486,-2431.62,0.000171,2]
[367569246,1750861847495,-460.0,0.000171,2]
[367569247,1750861847505,-898.85,0.000171,2]
[367569248,1750861847517,-460.0,0.00017101,2]
[367569249,1750861847525,-333.98,0.00017101,2]
[367569250,1750861847536,-269.632484,0.00017101,2]
[367569252,1750861847546,-151.0,0.00017101,2]
[367569254,1750861847555,-775.84,0.00017101,2]
[367569255,1750861847564,-151.0,0.00017101,2]
[367569257,1750861847573,-487.31,0.00017101,2]
[367569259,1750861847583,-151.0,0.00017101,2]
[367569261,1750861847592,-151.0,0.00017101,2]
[367569263,1750861847601,-151.0,0.00017101,2]
[367569265,1750861847610,-151.0,0.00017101,2]
[367569267,1750861847620,-460.0,0.00017101,2]
[367569269,1750861847629,-151.0,0.00017101,2]
[367569271,1750861847639,-460.0,0.00017101,2]
[367569273,1750861847648,-151.0,0.00017101,2]
[367569275,1750861847657,-497.45,0.00017101,2]
[367569277,1750861847666,-460.0,0.00017101,2]
[367569278,1750861847675,-1224.78,0.00017101,2]
[367569280,1750861847685,-151.0,0.00017101,2]
[367569281,1750861847694,-151.0,0.00017101,2]
[367569282,1750861847703,-460.0,0.00017101,2]
[367569283,1750861847713,-844.57,0.00017101,2]
[367569285,1750861847722,-460.0,0.00017101,2]
[367569287,1750861847731,-460.0,0.00017101,2]
[367569289,1750861847742,-151.0,0.00017101,2]
[367569290,1750861847752,-460.0,0.00017101,2]
[367569291,1750861847761,-460.0,0.00017101,2]
[367569292,1750861847770,-242.645154,0.00017101,2]
[367569293,1750861847780,-242.645154,0.00017101,2]
[367569294,1750861847789,-531.66,0.00017101,2]
[367569295,1750861847799,-438.35,0.00017101,2]
[367569296,1750861847812,-460.0,0.00017101,2]
[367569297,1750861847821,-2452.55,0.00017101,2]
[367569298,1750861847830,-460.0,0.00017101,2]
[367569299,1750861847839,-460.0,0.00017101,2]
[367569301,1750861847850,-460.0,0.00017101,2]
[367569303,1750861847859,-1591.01,0.00017101,2]
[367569315,1750861847983,-460.0,0.00017101,2]
[367569316,1750861847993,-460.0,0.00017101,2]
[367569317,1750861848003,-460.0,0.00017101,2]
[367569318,1750861848013,-1989.73,0.00017101,2]